{"text_format":"3","workbook":"xlsx","n_sheets":7,"sheets":["Maanantai","Tiistai","Keskiviikko","Torstai","Perjantai","Lauantai","Sunnuntai"],"not_rendered":{"defined_names":21},"read":"whole","date_system":"1900"}

{"sheet":"Maanantai","index":0,"n_rows":10,"n_cols":13,"rows_kept":10,"merged":[[0,1,0,4],[1,2,1,4],[2,2,2,4]]}
[null,"Vuoroaikataulu"]
[null,"Koskee viikkoa: ","Päivämäärä"]
[null,"Osaston nimi: ","Nimi"]
[]
[null,"MAANANTAI","7.00","8.00","9.00","10.00","11.00","12.00","13.00","14.00","15.00","Sairaana?","SUMMA"]
[null,"Nimi 1","esimies","esimies","esimies","esimies","esimies","esimies","esimies","esimies","esimies",null,{"$f":"COUNTIF(Maanantai[[#This Row],[7.00]:[15.00]],\"*\")","v":9}]
[null,"Nimi 2",null,"kassanhoitaja","kassanhoitaja","kassanhoitaja","kassanhoitaja",{"$nulls":5},{"$f":"COUNTIF(Maanantai[[#This Row],[7.00]:[15.00]],\"*\")","v":4}]
[null,"Nimi 3",null,"vastaanotto","vastaanotto","vastaanotto","vastaanotto ","vastaanotto","vastaanotto","vastaanotto",null,null,{"$f":"COUNTIF(Maanantai[[#This Row],[7.00]:[15.00]],\"*\")","v":7}]
[null,"Nimi 4",null,"vastaanotto","vastaanotto","vastaanotto","vastaanotto ","vastaanotto","vastaanotto","vastaanotto",null,null,{"$f":"COUNTIF(Maanantai[[#This Row],[7.00]:[15.00]],\"*\")","v":7}]
[null,"Nimi 5",{"$nulls":9},"Sairaana",{"$f":"COUNTIF(Maanantai[[#This Row],[7.00]:[15.00]],\"*\")","v":0}]

{"sheet":"Tiistai","index":1,"n_rows":10,"n_cols":13,"rows_kept":10,"merged":[[0,1,0,4],[1,2,1,4],[2,2,2,4]]}
[null,"Vuoroaikataulu"]
[null,"Koskee viikkoa: ",{"$f":"Maanantai!C2","v":"Päivämäärä"}]
[null,"Osaston nimi: ",{"$f":"Maanantai!C3","v":"Nimi"}]
[]
[null,"TIISTAI","7.00","8.00","9.00","10.00","11.00","12.00","13.00","14.00","15.00","Sairaana?","SUMMA"]
[null,"Nimi 1","esimies","esimies","esimies","esimies","esimies","esimies","esimies","esimies","esimies",null,{"$f":"COUNTIF(Tiistai[[#This Row],[7.00]:[15.00]],\"*\")","v":9}]
[null,"Nimi 2",null,"kassanhoitaja","kassanhoitaja","kassanhoitaja","kassanhoitaja",{"$nulls":5},{"$f":"COUNTIF(Tiistai[[#This Row],[7.00]:[15.00]],\"*\")","v":4}]
[null,"Nimi 3",null,"vastaanotto","vastaanotto","vastaanotto","vastaanotto ","vastaanotto","vastaanotto","vastaanotto",null,null,{"$f":"COUNTIF(Tiistai[[#This Row],[7.00]:[15.00]],\"*\")","v":7}]
[null,"Nimi 4",null,"vastaanotto","vastaanotto","vastaanotto","vastaanotto ","vastaanotto","vastaanotto","vastaanotto",null,null,{"$f":"COUNTIF(Tiistai[[#This Row],[7.00]:[15.00]],\"*\")","v":7}]
[null,"Nimi 5",{"$nulls":9},"Sairaana",{"$f":"COUNTIF(Tiistai[[#This Row],[7.00]:[15.00]],\"*\")","v":0}]

{"sheet":"Keskiviikko","index":2,"n_rows":10,"n_cols":13,"rows_kept":10,"merged":[[0,1,0,4],[1,2,1,4],[2,2,2,4]]}
[null,"Vuoroaikataulu"]
[null,"Koskee viikkoa: ",{"$f":"Maanantai!C2","v":"Päivämäärä"}]
[null,"Osaston nimi: ",{"$f":"Maanantai!C3","v":"Nimi"}]
[]
[null,"KESKIVIIKKO","7.00","8.00","9.00","10.00","11.00","12.00","13.00","14.00","15.00","Sairaana?","SUMMA"]
[null,"Nimi 1","esimies","esimies","esimies","esimies","esimies","esimies","esimies","esimies","esimies",null,{"$f":"COUNTIF(Keskiviikko[[#This Row],[7.00]:[15.00]],\"*\")","v":9}]
[null,"Nimi 2",null,"kassanhoitaja","kassanhoitaja","kassanhoitaja","kassanhoitaja",{"$nulls":5},{"$f":"COUNTIF(Keskiviikko[[#This Row],[7.00]:[15.00]],\"*\")","v":4}]
[null,"Nimi 3",null,"vastaanotto","vastaanotto","vastaanotto","vastaanotto ","vastaanotto","vastaanotto","vastaanotto",null,null,{"$f":"COUNTIF(Keskiviikko[[#This Row],[7.00]:[15.00]],\"*\")","v":7}]
[null,"Nimi 4",null,"vastaanotto","vastaanotto","vastaanotto","vastaanotto ","vastaanotto","vastaanotto","vastaanotto",null,null,{"$f":"COUNTIF(Keskiviikko[[#This Row],[7.00]:[15.00]],\"*\")","v":7}]
[null,"Nimi 5",{"$nulls":9},"Sairaana",{"$f":"COUNTIF(Keskiviikko[[#This Row],[7.00]:[15.00]],\"*\")","v":0}]

{"sheet":"Torstai","index":3,"n_rows":10,"n_cols":13,"rows_kept":10,"merged":[[0,1,0,4],[1,2,1,4],[2,2,2,4]]}
[null,"Vuoroaikataulu"]
[null,"Koskee viikkoa: ",{"$f":"Maanantai!C2","v":"Päivämäärä"}]
[null,"Osaston nimi: ",{"$f":"Maanantai!C3","v":"Nimi"}]
[]
[null,"TORSTAI","7.00","8.00","9.00","10.00","11.00","12.00","13.00","14.00","15.00","Sairaana?","SUMMA"]
[null,"Nimi 1","esimies","esimies","esimies","esimies","esimies","esimies","esimies","esimies","esimies",null,{"$f":"COUNTIF(Torstai[[#This Row],[7.00]:[15.00]],\"*\")","v":9}]
[null,"Nimi 2",null,"kassanhoitaja","kassanhoitaja","kassanhoitaja","kassanhoitaja",{"$nulls":5},{"$f":"COUNTIF(Torstai[[#This Row],[7.00]:[15.00]],\"*\")","v":4}]
[null,"Nimi 3",null,"vastaanotto","vastaanotto","vastaanotto","vastaanotto ","vastaanotto","vastaanotto","vastaanotto",null,null,{"$f":"COUNTIF(Torstai[[#This Row],[7.00]:[15.00]],\"*\")","v":7}]
[null,"Nimi 4",null,"vastaanotto","vastaanotto","vastaanotto","vastaanotto ","vastaanotto","vastaanotto","vastaanotto",null,null,{"$f":"COUNTIF(Torstai[[#This Row],[7.00]:[15.00]],\"*\")","v":7}]
[null,"Nimi 5",{"$nulls":9},"Sairaana",{"$f":"COUNTIF(Torstai[[#This Row],[7.00]:[15.00]],\"*\")","v":0}]

{"sheet":"Perjantai","index":4,"n_rows":10,"n_cols":13,"rows_kept":10,"merged":[[0,1,0,4],[1,2,1,4],[2,2,2,4]]}
[null,"Vuoroaikataulu"]
[null,"Koskee viikkoa: ",{"$f":"Maanantai!C2","v":"Päivämäärä"}]
[null,"Osaston nimi: ",{"$f":"Maanantai!C3","v":"Nimi"}]
[]
[null,"PERJANTAI","7.00","8.00","9.00","10.00","11.00","12.00","13.00","14.00","15.00","Sairaana?","SUMMA"]
[null,"Nimi 1","esimies","esimies","esimies","esimies","esimies","esimies","esimies","esimies","esimies",null,{"$f":"COUNTIF(Perjantai[[#This Row],[7.00]:[15.00]],\"*\")","v":9}]
[null,"Nimi 2",null,"kassanhoitaja","kassanhoitaja","kassanhoitaja","kassanhoitaja",{"$nulls":5},{"$f":"COUNTIF(Perjantai[[#This Row],[7.00]:[15.00]],\"*\")","v":4}]
[null,"Nimi 3",null,"vastaanotto","vastaanotto","vastaanotto","vastaanotto ","vastaanotto","vastaanotto","vastaanotto",null,null,{"$f":"COUNTIF(Perjantai[[#This Row],[7.00]:[15.00]],\"*\")","v":7}]
[null,"Nimi 4",null,"vastaanotto","vastaanotto","vastaanotto","vastaanotto ","vastaanotto","vastaanotto","vastaanotto",null,null,{"$f":"COUNTIF(Perjantai[[#This Row],[7.00]:[15.00]],\"*\")","v":7}]
[null,"Nimi 5",{"$nulls":9},"Sairaana",{"$f":"COUNTIF(Perjantai[[#This Row],[7.00]:[15.00]],\"*\")","v":0}]

{"sheet":"Lauantai","index":5,"n_rows":10,"n_cols":13,"rows_kept":10,"merged":[[0,1,0,4],[1,2,1,4],[2,2,2,4]]}
[null,"Vuoroaikataulu"]
[null,"Koskee viikkoa: ",{"$f":"Maanantai!C2","v":"Päivämäärä"}]
[null,"Osaston nimi: ",{"$f":"Maanantai!C3","v":"Nimi"}]
[]
[null,"LAUANTAI","7.00","8.00","9.00","10.00","11.00","12.00","13.00","14.00","15.00","Sairaana?","SUMMA"]
[null,"Nimi 1","esimies","esimies","esimies","esimies","esimies","esimies","esimies","esimies","esimies",null,{"$f":"COUNTIF(Lauantai[[#This Row],[7.00]:[15.00]],\"*\")","v":9}]
[null,"Nimi 2",null,"kassanhoitaja","kassanhoitaja","kassanhoitaja","kassanhoitaja",{"$nulls":5},{"$f":"COUNTIF(Lauantai[[#This Row],[7.00]:[15.00]],\"*\")","v":4}]
[null,"Nimi 3",null,"vastaanotto","vastaanotto","vastaanotto","vastaanotto ","vastaanotto","vastaanotto","vastaanotto",null,null,{"$f":"COUNTIF(Lauantai[[#This Row],[7.00]:[15.00]],\"*\")","v":7}]
[null,"Nimi 4",null,"vastaanotto","vastaanotto","vastaanotto","vastaanotto ","vastaanotto","vastaanotto","vastaanotto",null,null,{"$f":"COUNTIF(Lauantai[[#This Row],[7.00]:[15.00]],\"*\")","v":7}]
[null,"Nimi 5",{"$nulls":9},"Sairaana",{"$f":"COUNTIF(Lauantai[[#This Row],[7.00]:[15.00]],\"*\")","v":0}]

{"sheet":"Sunnuntai","index":6,"n_rows":10,"n_cols":13,"rows_kept":10,"merged":[[0,1,0,4],[1,2,1,4],[2,2,2,4]]}
[null,"Vuoroaikataulu"]
[null,"Koskee viikkoa: ",{"$f":"Maanantai!C2","v":"Päivämäärä"}]
[null,"Osaston nimi: ",{"$f":"Maanantai!C3","v":"Nimi"}]
[]
[null,"SUNNUNTAI","7.00","8.00","9.00","10.00","11.00","12.00","13.00","14.00","15.00","Sairaana?","SUMMA"]
[null,"Nimi 1","esimies","esimies","esimies","esimies","esimies","esimies","esimies","esimies","esimies",null,{"$f":"COUNTIF(Sunnuntai[[#This Row],[7.00]:[15.00]],\"*\")","v":9}]
[null,"Nimi 2",null,"kassanhoitaja","kassanhoitaja","kassanhoitaja","kassanhoitaja",{"$nulls":5},{"$f":"COUNTIF(Sunnuntai[[#This Row],[7.00]:[15.00]],\"*\")","v":4}]
[null,"Nimi 3",null,"vastaanotto","vastaanotto","vastaanotto","vastaanotto ","vastaanotto","vastaanotto","vastaanotto",null,null,{"$f":"COUNTIF(Sunnuntai[[#This Row],[7.00]:[15.00]],\"*\")","v":7}]
[null,"Nimi 4",null,"vastaanotto","vastaanotto","vastaanotto","vastaanotto ","vastaanotto","vastaanotto","vastaanotto",null,null,{"$f":"COUNTIF(Sunnuntai[[#This Row],[7.00]:[15.00]],\"*\")","v":7}]
[null,"Nimi 5",{"$nulls":9},"Sairaana",{"$f":"COUNTIF(Sunnuntai[[#This Row],[7.00]:[15.00]],\"*\")","v":0}]